[Event "Titled Tuesday Blitz November 01 Early 2022"]
[White "Kuznetsova, Olga"]
[Black "Hoffmann, Asa"]
[WhiteFideId "4191323"]
[BlackFideId "2001470"]
[WhiteElo "2134"]
[BlackElo "2117"]
[Result "1/2-1/2"]
[Round "03"]
[TimeControl "180+1"]
[Date "2022.11.02"]
[WhiteClock "0:00:06"]
[BlackClock "0:00:56"]

1. d4 {[%clk 0:03:00]}  Nf6 {[%clk 0:02:58]} 2. g3 {[%clk 0:03:00]}  c6 {[%clk 0:02:56]} 3. Bg2 {[%clk 0:03:00]}  d6 {[%clk 0:02:56]} 4. e4 {[%clk 0:03:00]}  e5 {[%clk 0:02:55]} 5. dxe5 {[%clk 0:03:00]}  dxe5 {[%clk 0:02:55]} 6. Qe2 {[%clk 0:02:58]}  Be6 {[%clk 0:02:52]} 7. Nf3 {[%clk 0:02:46]}  Nbd7 {[%clk 0:02:50]} 8. O-O {[%clk 0:02:46]}  h6 {[%clk 0:02:49]} 9. c3 {[%clk 0:02:43]}  Qc7 {[%clk 0:02:48]} 10. Rd1 {[%clk 0:02:41]}  Bc5 {[%clk 0:02:46]} 11. h3 {[%clk 0:02:40]}  O-O {[%clk 0:02:45]} 12. b4 {[%clk 0:02:37]}  Bb6 {[%clk 0:02:44]} 13. Nbd2 {[%clk 0:02:37]}  a5 {[%clk 0:02:42]} 14. a3 {[%clk 0:02:35]}  Rfd8 {[%clk 0:02:40]} 15. Nf1 {[%clk 0:02:33]}  c5 {[%clk 0:02:36]} 16. b5 {[%clk 0:02:21]}  c4 {[%clk 0:02:34]} 17. Be3 {[%clk 0:02:19]}  Nc5 {[%clk 0:02:29]} 18. Bxc5 {[%clk 0:02:18]}  Qxc5 {[%clk 0:02:26]} 19. a4 {[%clk 0:02:16]}  Rxd1 {[%clk 0:02:20]} 20. Rxd1 {[%clk 0:02:15]}  Rd8 {[%clk 0:02:19]} 21. Rxd8+ {[%clk 0:02:00]}  Bxd8 {[%clk 0:02:17]} 22. Qd1 {[%clk 0:01:54]}  Bb6 {[%clk 0:02:15]} 23. Qc2 {[%clk 0:01:53]}  Qxf2+ {[%clk 0:01:55]} 24. Qxf2 {[%clk 0:01:51]}  Bxf2+ {[%clk 0:01:55]} 25. Kxf2 {[%clk 0:01:51]}  Nxe4+ {[%clk 0:01:55]} 26. Ke3 {[%clk 0:01:48]}  Nxc3 {[%clk 0:01:54]} 27. Nxe5 {[%clk 0:01:48]}  Nxa4 {[%clk 0:01:54]} 28. Bxb7 {[%clk 0:01:48]}  Nc5 {[%clk 0:01:52]} 29. Bc6 {[%clk 0:01:36]}  Bxh3 {[%clk 0:01:50]} 30. Nd2 {[%clk 0:00:56]}  c3 {[%clk 0:01:50]} 31. Ne4 {[%clk 0:00:48]}  Nxe4 {[%clk 0:01:46]} 32. Bxe4 {[%clk 0:00:48]}  a4 {[%clk 0:01:40]} 33. b6 {[%clk 0:00:45]}  Bc8 {[%clk 0:01:39]} 34. Kd3 {[%clk 0:00:38]}  f5 {[%clk 0:01:36]} 35. Bd5+ {[%clk 0:00:36]}  Kf8 {[%clk 0:01:36]} 36. Kxc3 {[%clk 0:00:36]}  Ke7 {[%clk 0:01:36]} 37. Nc4 {[%clk 0:00:31]}  g5 {[%clk 0:01:33]} 38. Kb4 {[%clk 0:00:25]}  h5 {[%clk 0:01:30]} 39. Kxa4 {[%clk 0:00:24]}  h4 {[%clk 0:01:30]} 40. gxh4 {[%clk 0:00:24]}  gxh4 {[%clk 0:01:30]} 41. Kb5 {[%clk 0:00:24]}  h3 {[%clk 0:01:30]} 42. Kc6 {[%clk 0:00:24]}  h2 {[%clk 0:01:29]} 43. Kc7 {[%clk 0:00:24]}  Ba6 {[%clk 0:01:27]} 44. Nd6 {[%clk 0:00:22]}  Kf6 {[%clk 0:01:24]} 45. Nb7 {[%clk 0:00:18]}  Ke5 {[%clk 0:01:22]} 46. Bh1 {[%clk 0:00:18]}  Kd4 {[%clk 0:01:20]} 47. Kd6 {[%clk 0:00:17]}  f4 {[%clk 0:01:19]} 48. Nc5 {[%clk 0:00:17]}  Bc8 {[%clk 0:01:18]} 49. Ne6+ {[%clk 0:00:15]}  Ke3 {[%clk 0:01:16]} 50. Kc7 {[%clk 0:00:16]}  Ba6 {[%clk 0:01:16]} 51. Nc5 {[%clk 0:00:16]}  f3 {[%clk 0:01:14]} 52. Nxa6 {[%clk 0:00:16]}  f2 {[%clk 0:01:14]} 53. b7 {[%clk 0:00:17]}  f1=Q {[%clk 0:01:13]} 54. b8=Q {[%clk 0:00:18]}  Qxh1 {[%clk 0:01:11]} 55. Qb6+ {[%clk 0:00:18]}  Ke2 {[%clk 0:01:10]} 56. Qb5+ {[%clk 0:00:18]}  Kf2 {[%clk 0:01:09]} 57. Qc5+ {[%clk 0:00:18]}  Ke2 {[%clk 0:01:07]} 58. Qc2+ {[%clk 0:00:17]}  Ke3 {[%clk 0:01:07]} 59. Nc5 {[%clk 0:00:14]}  Qd5 {[%clk 0:01:02]} 60. Qxh2 {[%clk 0:00:05]}  Qxc5+ {[%clk 0:00:59]} 61. Kd7 {[%clk 0:00:05]}  Qd5+ {[%clk 0:00:58]} 62. Ke7 {[%clk 0:00:06]}  Qe4+ {[%clk 0:00:56]} 1/2-1/2


[Site "https://www.chess.com"]

[Event "Titled Tuesday Blitz November 01 Early 2022"]
[White "Larina, Maria"]
[Black "Kotepalli, Sai Nirupama"]
[WhiteFideId "24113182"]
[BlackFideId "5039444"]
[WhiteElo "1848"]
[BlackElo "2395"]
[Result "0-1"]
[Round "03"]
[TimeControl "180+1"]
[Date "2022.11.02"]
[WhiteClock "0:01:16"]
[BlackClock "0:01:22"]

1. e4 {[%clk 0:03:00]}  c5 {[%clk 0:02:59]} 2. Nc3 {[%clk 0:03:00]}  e6 {[%clk 0:02:58]} 3. Nf3 {[%clk 0:02:59]}  Nc6 {[%clk 0:02:58]} 4. d4 {[%clk 0:02:59]}  cxd4 {[%clk 0:02:57]} 5. Nxd4 {[%clk 0:03:00]}  Nf6 {[%clk 0:02:58]} 6. Ndb5 {[%clk 0:02:58]}  Bb4 {[%clk 0:02:57]} 7. a3 {[%clk 0:02:57]}  Bxc3+ {[%clk 0:02:54]} 8. Nxc3 {[%clk 0:02:58]}  d5 {[%clk 0:02:53]} 9. exd5 {[%clk 0:02:58]}  exd5 {[%clk 0:02:52]} 10. Bd3 {[%clk 0:02:59]}  d4 {[%clk 0:02:52]} 11. Ne2 {[%clk 0:02:58]}  O-O {[%clk 0:02:49]} 12. O-O {[%clk 0:02:58]}  Bg4 {[%clk 0:02:47]} 13. f3 {[%clk 0:02:58]}  Be6 {[%clk 0:02:46]} 14. b4 {[%clk 0:02:42]}  a6 {[%clk 0:02:43]} 15. Bg5 {[%clk 0:02:36]}  h6 {[%clk 0:02:41]} 16. Bh4 {[%clk 0:02:34]}  g5 {[%clk 0:02:36]} 17. Bf2 {[%clk 0:02:33]}  Qd6 {[%clk 0:02:33]} 18. Ng3 {[%clk 0:02:28]}  Rad8 {[%clk 0:02:29]} 19. Nf5 {[%clk 0:02:25]}  Bxf5 {[%clk 0:02:26]} 20. Bxf5 {[%clk 0:02:25]}  Nd5 {[%clk 0:02:22]} 21. Re1 {[%clk 0:02:03]}  Qf4 {[%clk 0:02:14]} 22. Bd3 {[%clk 0:01:58]}  Ne3 {[%clk 0:02:03]} 23. Bxe3 {[%clk 0:01:53]}  dxe3 {[%clk 0:02:00]} 24. Qe2 {[%clk 0:01:53]}  Rfe8 {[%clk 0:01:55]} 25. g3 {[%clk 0:01:51]}  Qf6 {[%clk 0:01:50]} 26. Be4 {[%clk 0:01:47]}  Nd4 {[%clk 0:01:49]} 27. Qg2 {[%clk 0:01:37]}  Qg7 {[%clk 0:01:36]} 28. Bxb7 {[%clk 0:01:29]}  e2 {[%clk 0:01:31]} 29. c3 {[%clk 0:01:21]}  Nc2 {[%clk 0:01:28]} 30. Qf2 {[%clk 0:01:15]}  Nxa1 {[%clk 0:01:25]} 31. Rxa1 {[%clk 0:01:16]}  Qxc3 {[%clk 0:01:24]} 32. Re1 {[%clk 0:01:16]}  Rd1 {[%clk 0:01:22]} 0-1


[Site "https://www.chess.com"]

[Event "Titled Tuesday Blitz November 01 Early 2022"]
[White "Levitan, Caleb Levi"]
[Black "Stoleriu, George"]
[WhiteFideId "14332620"]
[BlackFideId "1227505"]
[WhiteElo "1963"]
[BlackElo "2292"]
[Result "0-1"]
[Round "03"]
[TimeControl "180+1"]
[Date "2022.11.02"]
[WhiteClock "0:00:13"]
[BlackClock "0:01:46"]

1. e4 {[%clk 0:02:57]}  c6 {[%clk 0:02:58]} 2. d4 {[%clk 0:02:56]}  d6 {[%clk 0:02:56]} 3. Nc3 {[%clk 0:02:53]}  Nf6 {[%clk 0:02:56]} 4. Bf4 {[%clk 0:02:51]}  Nbd7 {[%clk 0:02:54]} 5. Nf3 {[%clk 0:02:51]}  g6 {[%clk 0:02:53]} 6. Qd2 {[%clk 0:02:50]}  Bg7 {[%clk 0:02:53]} 7. O-O-O {[%clk 0:02:48]}  b5 {[%clk 0:02:53]} 8. e5 {[%clk 0:02:48]}  Nh5 {[%clk 0:02:52]} 9. exd6 {[%clk 0:02:47]}  Nxf4 {[%clk 0:02:51]} 10. Qxf4 {[%clk 0:02:46]}  O-O {[%clk 0:02:51]} 11. dxe7 {[%clk 0:02:45]}  Qxe7 {[%clk 0:02:52]} 12. Bd3 {[%clk 0:02:35]}  b4 {[%clk 0:02:36]} 13. Ne4 {[%clk 0:02:32]}  Nb6 {[%clk 0:02:34]} 14. Qd6 {[%clk 0:02:29]}  Qxd6 {[%clk 0:02:31]} 15. Nxd6 {[%clk 0:02:28]}  Bg4 {[%clk 0:02:32]} 16. Be4 {[%clk 0:02:20]}  Rfd8 {[%clk 0:02:30]} 17. Nb7 {[%clk 0:02:16]}  Rdc8 {[%clk 0:02:26]} 18. h3 {[%clk 0:02:11]}  Be6 {[%clk 0:02:25]} 19. b3 {[%clk 0:02:06]}  Nd5 {[%clk 0:02:22]} 20. Bxd5 {[%clk 0:01:53]}  Bxd5 {[%clk 0:02:22]} 21. Nc5 {[%clk 0:01:52]}  Rd8 {[%clk 0:02:21]} 22. Nd3 {[%clk 0:01:35]}  Bxf3 {[%clk 0:02:20]} 23. gxf3 {[%clk 0:01:33]}  Rxd4 {[%clk 0:02:20]} 24. Rhe1 {[%clk 0:01:30]}  Rad8 {[%clk 0:02:20]} 25. f4 {[%clk 0:01:10]}  Bh6 {[%clk 0:02:18]} 26. Re7 {[%clk 0:01:03]}  Bxf4+ {[%clk 0:02:15]} 27. Kb2 {[%clk 0:01:03]}  R8d7 {[%clk 0:02:12]} 28. Re8+ {[%clk 0:00:53]}  Kg7 {[%clk 0:02:12]} 29. Rc8 {[%clk 0:00:51]}  R4d6 {[%clk 0:02:09]} 30. Re1 {[%clk 0:00:28]}  Bd2 {[%clk 0:02:09]} 31. Re4 {[%clk 0:00:28]}  Bc3+ {[%clk 0:02:07]} 32. Kb1 {[%clk 0:00:28]}  Rf6 {[%clk 0:01:59]} 33. f4 {[%clk 0:00:22]}  Rdd6 {[%clk 0:01:58]} 34. Rc7 {[%clk 0:00:20]}  Rfe6 {[%clk 0:01:57]} 35. Rxe6 {[%clk 0:00:18]}  Rxe6 {[%clk 0:01:58]} 36. Rxa7 {[%clk 0:00:16]}  Re3 {[%clk 0:01:59]} 37. a4 {[%clk 0:00:13]}  Rxh3 {[%clk 0:01:56]} 38. Rd7 {[%clk 0:00:10]}  Rh1+ {[%clk 0:01:56]} 39. Nc1 {[%clk 0:00:11]}  Rh5 {[%clk 0:01:49]} 40. Ne2 {[%clk 0:00:09]}  Bf6 {[%clk 0:01:47]} 41. Rd6 {[%clk 0:00:08]}  Rc5 {[%clk 0:01:47]} 42. a5 {[%clk 0:00:06]}  Rxa5 {[%clk 0:01:47]} 43. Nd4 {[%clk 0:00:05]}  Rd5 {[%clk 0:01:43]} 44. Rxd5 {[%clk 0:00:05]}  cxd5 {[%clk 0:01:44]} 45. Nc6 {[%clk 0:00:06]}  h5 {[%clk 0:01:44]} 46. Kc1 {[%clk 0:00:07]}  h4 {[%clk 0:01:44]} 47. Nxb4 {[%clk 0:00:07]}  h3 {[%clk 0:01:45]} 48. Nd3 {[%clk 0:00:08]}  Bd4 {[%clk 0:01:43]} 49. Nf2 {[%clk 0:00:09]}  Bxf2 {[%clk 0:01:43]} 50. b4 {[%clk 0:00:09]}  h2 {[%clk 0:01:43]} 51. b5 {[%clk 0:00:10]}  h1=Q+ {[%clk 0:01:44]} 52. Kb2 {[%clk 0:00:11]}  Qe4 {[%clk 0:01:45]} 53. b6 {[%clk 0:00:12]}  Qb4+ {[%clk 0:01:45]} 54. Kc1 {[%clk 0:00:12]}  Be3+ {[%clk 0:01:45]} 55. Kd1 {[%clk 0:00:13]}  Qd2# {[%clk 0:01:46]} 0-1


[Site "https://www.chess.com"]

[Event "Titled Tuesday Blitz November 01 Early 2022"]
[White "Maghsoodloo, Parham"]
[Black "Lopez, Henry"]
[WhiteFideId "12539929"]
[BlackFideId "5203830"]
[WhiteElo "2676"]
[BlackElo "2177"]
[Result "0-1"]
[Round "03"]
[TimeControl "180+1"]
[Date "2022.11.02"]
[WhiteClock "0:00:08"]
[BlackClock "0:00:46"]

1. e4 {[%clk 0:03:00]}  c5 {[%clk 0:02:58]} 2. Nf3 {[%clk 0:02:59]}  d6 {[%clk 0:02:58]} 3. d4 {[%clk 0:02:53]}  cxd4 {[%clk 0:02:58]} 4. Nxd4 {[%clk 0:02:54]}  Nf6 {[%clk 0:02:58]} 5. Nc3 {[%clk 0:02:55]}  a6 {[%clk 0:02:58]} 6. Bg5 {[%clk 0:02:55]}  e6 {[%clk 0:02:57]} 7. Qe2 {[%clk 0:02:55]}  Be7 {[%clk 0:02:53]} 8. O-O-O {[%clk 0:02:51]}  h6 {[%clk 0:02:49]} 9. Bxf6 {[%clk 0:02:33]}  Bxf6 {[%clk 0:02:49]} 10. f4 {[%clk 0:02:33]}  Qb6 {[%clk 0:02:45]} 11. e5 {[%clk 0:02:31]}  dxe5 {[%clk 0:02:43]} 12. fxe5 {[%clk 0:02:32]}  Be7 {[%clk 0:02:41]} 13. g4 {[%clk 0:02:24]}  Bd7 {[%clk 0:02:39]} 14. Bg2 {[%clk 0:02:23]}  Nc6 {[%clk 0:02:39]} 15. Nxc6 {[%clk 0:02:18]}  Bxc6 {[%clk 0:02:38]} 16. Bxc6+ {[%clk 0:02:19]}  Qxc6 {[%clk 0:02:38]} 17. h4 {[%clk 0:02:20]}  Rc8 {[%clk 0:02:31]} 18. Kb1 {[%clk 0:02:18]}  Qc4 {[%clk 0:02:27]} 19. Qf3 {[%clk 0:02:17]}  b5 {[%clk 0:02:26]} 20. a3 {[%clk 0:02:16]}  a5 {[%clk 0:02:25]} 21. Qd3 {[%clk 0:01:58]}  b4 {[%clk 0:02:20]} 22. axb4 {[%clk 0:01:55]}  axb4 {[%clk 0:02:18]} 23. Ne4 {[%clk 0:01:52]}  Qxd3 {[%clk 0:02:16]} 24. cxd3 {[%clk 0:01:51]}  O-O {[%clk 0:02:14]} 25. g5 {[%clk 0:01:40]}  h5 {[%clk 0:02:06]} 26. Ka2 {[%clk 0:01:29]}  Rfd8 {[%clk 0:02:02]} 27. Kb3 {[%clk 0:01:29]}  Rd5 {[%clk 0:02:02]} 28. d4 {[%clk 0:01:29]}  Rcd8 {[%clk 0:02:01]} 29. Kc4 {[%clk 0:01:29]}  Rc8+ {[%clk 0:02:01]} 30. Kd3 {[%clk 0:01:22]}  Rcd8 {[%clk 0:01:59]} 31. Ke3 {[%clk 0:01:22]}  Kh7 {[%clk 0:01:46]} 32. Rd2 {[%clk 0:01:17]}  Kg6 {[%clk 0:01:45]} 33. Rc1 {[%clk 0:01:14]}  R8d7 {[%clk 0:01:40]} 34. Rc6 {[%clk 0:00:53]}  Ra7 {[%clk 0:01:34]} 35. Rf2 {[%clk 0:00:38]}  Rad7 {[%clk 0:01:27]} 36. Rd2 {[%clk 0:00:23]}  Ra7 {[%clk 0:01:25]} 37. Nf2 {[%clk 0:00:23]}  Kh7 {[%clk 0:01:03]} 38. Nd3 {[%clk 0:00:22]}  g6 {[%clk 0:01:02]} 39. Nf2 {[%clk 0:00:15]}  Kg7 {[%clk 0:00:54]} 40. Ne4 {[%clk 0:00:15]}  Rd8 {[%clk 0:00:49]} 41. Rdc2 {[%clk 0:00:15]}  Rad7 {[%clk 0:00:47]} 42. Rc7 {[%clk 0:00:14]}  Kf8 {[%clk 0:00:46]} 43. Rxd7 {[%clk 0:00:09]}  Rxd7 {[%clk 0:00:46]} 44. Rc8+ {[%clk 0:00:09]}  Rd8 {[%clk 0:00:46]} 45. Rxd8+ {[%clk 0:00:08]}  Bxd8 {[%clk 0:00:46]} 0-1


[Site "https://www.chess.com"]

[Event "Titled Tuesday Blitz November 01 Early 2022"]
[White "Makhmudov, Shukhrat"]
[Black "Pham, Khoi"]
[WhiteFideId "14200775"]
[BlackFideId "1054988"]
[WhiteElo "2135"]
[BlackElo "2461"]
[Result "0-1"]
[Round "03"]
[TimeControl "180+1"]
[Date "2022.11.02"]
[WhiteClock "0:00:17"]
[BlackClock "0:00:50"]

1. d4 {[%clk 0:03:00]}  f5 {[%clk 0:02:56]} 2. g3 {[%clk 0:02:56]}  Nf6 {[%clk 0:02:56]} 3. Bg2 {[%clk 0:02:56]}  g6 {[%clk 0:02:57]} 4. e3 {[%clk 0:02:57]}  Bg7 {[%clk 0:02:57]} 5. Nf3 {[%clk 0:02:57]}  O-O {[%clk 0:02:58]} 6. O-O {[%clk 0:02:57]}  d6 {[%clk 0:02:58]} 7. c4 {[%clk 0:02:57]}  Qe8 {[%clk 0:02:59]} 8. Nc3 {[%clk 0:02:57]}  e5 {[%clk 0:02:59]} 9. dxe5 {[%clk 0:02:55]}  dxe5 {[%clk 0:02:59]} 10. e4 {[%clk 0:02:56]}  f4 {[%clk 0:02:54]} 11. Nd5 {[%clk 0:02:48]}  Nxd5 {[%clk 0:02:36]} 12. cxd5 {[%clk 0:02:46]}  Bg4 {[%clk 0:02:32]} 13. Qb3 {[%clk 0:02:45]}  b6 {[%clk 0:02:17]} 14. h3 {[%clk 0:02:35]}  Bd7 {[%clk 0:02:14]} 15. Bd2 {[%clk 0:02:24]}  Na6 {[%clk 0:02:12]} 16. Bc3 {[%clk 0:02:05]}  Nc5 {[%clk 0:02:07]} 17. Qc2 {[%clk 0:02:04]}  a5 {[%clk 0:01:55]} 18. b3 {[%clk 0:01:39]}  Qc8 {[%clk 0:01:40]} 19. Bxe5 {[%clk 0:01:25]}  Bxh3 {[%clk 0:01:37]} 20. Bxg7 {[%clk 0:01:16]}  Kxg7 {[%clk 0:01:38]} 21. Ng5 {[%clk 0:00:55]}  Bxg2 {[%clk 0:01:36]} 22. Kxg2 {[%clk 0:00:56]}  Qg4 {[%clk 0:01:31]} 23. Nh3 {[%clk 0:00:29]}  Nxe4 {[%clk 0:01:13]} 24. Rae1 {[%clk 0:00:19]}  Rae8 {[%clk 0:01:11]} 25. Qxc7+ {[%clk 0:00:16]}  Rf7 {[%clk 0:01:11]} 26. Qc6 {[%clk 0:00:16]}  Re5 {[%clk 0:00:48]} 27. f3 {[%clk 0:00:16]}  Qxg3+ {[%clk 0:00:47]} 28. Kh1 {[%clk 0:00:17]}  Qxh3+ {[%clk 0:00:48]} 29. Kg1 {[%clk 0:00:17]}  Qg3+ {[%clk 0:00:49]} 30. Kh1 {[%clk 0:00:17]}  Rh5# {[%clk 0:00:50]} 0-1


[Site "https://www.chess.com"]

[Event "Titled Tuesday Blitz November 01 Early 2022"]
[White "Martinez Alcantara, Jose Eduardo"]
[Black "Bordi, Kevin"]
[WhiteFideId "3805662"]
[BlackFideId "621862"]
[WhiteElo "2703"]
[BlackElo "2801"]
[Result "1/2-1/2"]
[Round "03"]
[TimeControl "180+1"]
[Date "2022.11.01"]
[WhiteClock "0:00:17"]
[BlackClock "0:00:26"]

1. c4 {[%clk 0:03:00]}  c6 {[%clk 0:03:00]} 2. Nf3 {[%clk 0:03:01]}  d5 {[%clk 0:03:00]} 3. g3 {[%clk 0:03:02]}  Nf6 {[%clk 0:03:01]} 4. Bg2 {[%clk 0:03:02]}  Bf5 {[%clk 0:03:01]} 5. cxd5 {[%clk 0:03:02]}  cxd5 {[%clk 0:03:02]} 6. Qb3 {[%clk 0:03:02]}  Qb6 {[%clk 0:03:01]} 7. Nc3 {[%clk 0:03:02]}  e6 {[%clk 0:02:59]} 8. d3 {[%clk 0:03:02]}  Nc6 {[%clk 0:02:57]} 9. Qxb6 {[%clk 0:02:54]}  axb6 {[%clk 0:02:57]} 10. Nb5 {[%clk 0:02:55]}  Bb4+ {[%clk 0:02:44]} 11. Bd2 {[%clk 0:02:47]}  Bxd2+ {[%clk 0:02:44]} 12. Kxd2 {[%clk 0:02:46]}  Kd7 {[%clk 0:02:44]} 13. Rhc1 {[%clk 0:02:33]}  Ra5 {[%clk 0:02:44]} 14. Nbd4 {[%clk 0:02:28]}  Nxd4 {[%clk 0:02:42]} 15. Nxd4 {[%clk 0:02:29]}  Bg6 {[%clk 0:02:40]} 16. f4 {[%clk 0:02:26]}  Rc5 {[%clk 0:02:33]} 17. b4 {[%clk 0:02:25]}  Rxc1 {[%clk 0:02:32]} 18. Kxc1 {[%clk 0:02:23]}  Rc8+ {[%clk 0:02:30]} 19. Kb2 {[%clk 0:02:22]}  Ng4 {[%clk 0:02:31]} 20. Bh3 {[%clk 0:02:01]}  Ne3 {[%clk 0:02:29]} 21. Rc1 {[%clk 0:01:58]}  Rxc1 {[%clk 0:01:57]} 22. Kxc1 {[%clk 0:01:59]}  Bf5 {[%clk 0:01:57]} 23. Kd2 {[%clk 0:01:50]}  Bxh3 {[%clk 0:01:46]} 24. Kxe3 {[%clk 0:01:50]}  f6 {[%clk 0:01:45]} 25. Nb5 {[%clk 0:01:47]}  Kc6 {[%clk 0:01:42]} 26. Nc3 {[%clk 0:01:47]}  Kd6 {[%clk 0:01:38]} 27. Nb5+ {[%clk 0:01:46]}  Kc6 {[%clk 0:01:38]} 28. Nc3 {[%clk 0:01:47]}  Kd6 {[%clk 0:01:38]} 29. a3 {[%clk 0:01:46]}  Bg4 {[%clk 0:01:33]} 30. Na4 {[%clk 0:01:39]}  Kc6 {[%clk 0:01:30]} 31. Nc3 {[%clk 0:01:34]}  Kd6 {[%clk 0:01:29]} 32. d4 {[%clk 0:01:35]}  Bf5 {[%clk 0:01:26]} 33. Kd2 {[%clk 0:01:35]}  Kc6 {[%clk 0:01:23]} 34. a4 {[%clk 0:01:22]}  h6 {[%clk 0:01:17]} 35. Nd1 {[%clk 0:01:22]}  Kd6 {[%clk 0:01:14]} 36. Nf2 {[%clk 0:01:14]}  Kc6 {[%clk 0:01:06]} 37. Kc3 {[%clk 0:01:11]}  Kd6 {[%clk 0:01:06]} 38. b5 {[%clk 0:01:07]}  Bb1 {[%clk 0:01:00]} 39. e3 {[%clk 0:01:06]}  Bf5 {[%clk 0:01:00]} 40. h4 {[%clk 0:01:04]}  h5 {[%clk 0:00:55]} 41. Kb4 {[%clk 0:01:02]}  Kc7 {[%clk 0:00:47]} 42. Nd1 {[%clk 0:01:01]}  Bc2 {[%clk 0:00:45]} 43. Nc3 {[%clk 0:01:02]}  Bd3 {[%clk 0:00:41]} 44. Ka3 {[%clk 0:00:50]}  Bc2 {[%clk 0:00:41]} 45. Kb2 {[%clk 0:00:50]}  Bd3 {[%clk 0:00:40]} 46. Kc1 {[%clk 0:00:49]}  Bf5 {[%clk 0:00:40]} 47. Na2 {[%clk 0:00:46]}  Kd6 {[%clk 0:00:39]} 48. Kb2 {[%clk 0:00:46]}  Bd3 {[%clk 0:00:37]} 49. Kc3 {[%clk 0:00:45]}  Bb1 {[%clk 0:00:36]} 50. Nc1 {[%clk 0:00:46]}  Be4 {[%clk 0:00:36]} 51. Kb4 {[%clk 0:00:46]}  Kc7 {[%clk 0:00:35]} 52. Ne2 {[%clk 0:00:37]}  Bd3 {[%clk 0:00:34]} 53. Nc3 {[%clk 0:00:38]}  Bc2 {[%clk 0:00:34]} 54. a5 {[%clk 0:00:37]}  bxa5+ {[%clk 0:00:32]} 55. Kxa5 {[%clk 0:00:38]}  Bb3 {[%clk 0:00:29]} 56. b6+ {[%clk 0:00:32]}  Kc6 {[%clk 0:00:26]} 57. Nb5 {[%clk 0:00:33]}  Bc4 {[%clk 0:00:24]} 58. Na7+ {[%clk 0:00:33]}  Kd7 {[%clk 0:00:24]} 59. Kb4 {[%clk 0:00:33]}  Bd3 {[%clk 0:00:24]} 60. Kc5 {[%clk 0:00:31]}  Be2 {[%clk 0:00:24]} 61. Kb4 {[%clk 0:00:24]}  Ba6 {[%clk 0:00:24]} 62. Kc5 {[%clk 0:00:19]}  Bd3 {[%clk 0:00:24]} 63. Kb4 {[%clk 0:00:16]}  Ba6 {[%clk 0:00:24]} 64. Kc3 {[%clk 0:00:16]}  Be2 {[%clk 0:00:24]} 65. Kd2 {[%clk 0:00:15]}  Ba6 {[%clk 0:00:24]} 66. Ke1 {[%clk 0:00:14]}  Bd3 {[%clk 0:00:24]} 67. Kd1 {[%clk 0:00:15]}  Ba6 {[%clk 0:00:24]} 68. Kd2 {[%clk 0:00:15]}  Bf1 {[%clk 0:00:24]} 69. Kc3 {[%clk 0:00:15]}  Ba6 {[%clk 0:00:25]} 70. Kb3 {[%clk 0:00:16]}  Bd3 {[%clk 0:00:26]} 71. Kb4 {[%clk 0:00:17]}  Ba6 {[%clk 0:00:26]} 1/2-1/2


[Site "https://www.chess.com"]

[Event "Titled Tuesday Blitz November 01 Early 2022"]
[White "Melikyan, Gnel"]
[Black "Shaik Sumer Arsh"]
[WhiteFideId "54109990"]
[BlackFideId "45020000"]
[WhiteElo "2138"]
[BlackElo "2190"]
[Result "0-1"]
[Round "03"]
[TimeControl "180+1"]
[Date "2022.11.02"]
[WhiteClock "0:00:40"]
[BlackClock "0:00:38"]

1. d4 {[%clk 0:02:55]}  Nf6 {[%clk 0:02:56]} 2. c4 {[%clk 0:02:54]}  e6 {[%clk 0:02:54]} 3. Nc3 {[%clk 0:02:53]}  Bb4 {[%clk 0:02:49]} 4. f3 {[%clk 0:02:52]}  d5 {[%clk 0:02:48]} 5. a3 {[%clk 0:02:52]}  Bxc3+ {[%clk 0:02:48]} 6. bxc3 {[%clk 0:02:52]}  c5 {[%clk 0:02:37]} 7. e3 {[%clk 0:02:52]}  O-O {[%clk 0:02:30]} 8. Nh3 {[%clk 0:02:43]}  b6 {[%clk 0:02:12]} 9. Nf4 {[%clk 0:02:40]}  Ba6 {[%clk 0:02:03]} 10. Qa4 {[%clk 0:02:29]}  Qc8 {[%clk 0:01:53]} 11. cxd5 {[%clk 0:02:16]}  Bxf1 {[%clk 0:01:52]} 12. Kxf1 {[%clk 0:02:10]}  exd5 {[%clk 0:01:38]} 13. Kf2 {[%clk 0:02:07]}  Nc6 {[%clk 0:01:17]} 14. dxc5 {[%clk 0:01:57]}  bxc5 {[%clk 0:01:13]} 15. Rd1 {[%clk 0:01:57]}  Rd8 {[%clk 0:01:11]} 16. Rb1 {[%clk 0:01:57]}  Ne5 {[%clk 0:01:06]} 17. Qb5 {[%clk 0:01:49]}  Qf5 {[%clk 0:00:56]} 18. Rb2 {[%clk 0:00:57]}  g5 {[%clk 0:00:52]} 19. Ne2 {[%clk 0:00:46]}  a6 {[%clk 0:00:40]} 20. Qxc5 {[%clk 0:00:40]}  Ne4+ {[%clk 0:00:38]} 0-1


[Site "https://www.chess.com"]

[Event "Titled Tuesday Blitz November 01 Early 2022"]
[White "Mirzoev, Azer"]
[Black "Petrovic, Aleksa"]
[WhiteFideId "13400304"]
[BlackFideId "967629"]
[WhiteElo "2525"]
[BlackElo "2242"]
[Result "1-0"]
[Round "03"]
[TimeControl "180+1"]
[Date "2022.11.02"]
[WhiteClock "0:00:32"]
[BlackClock "0:00:01"]

1. c4 {[%clk 0:03:00]}  Nf6 {[%clk 0:02:58]} 2. Nc3 {[%clk 0:02:59]}  e5 {[%clk 0:02:56]} 3. g3 {[%clk 0:02:59]}  Bb4 {[%clk 0:02:50]} 4. Bg2 {[%clk 0:02:58]}  Bxc3 {[%clk 0:02:49]} 5. dxc3 {[%clk 0:02:58]}  O-O {[%clk 0:02:47]} 6. e4 {[%clk 0:02:58]}  d6 {[%clk 0:02:43]} 7. Qe2 {[%clk 0:02:56]}  Nc6 {[%clk 0:02:34]} 8. Nf3 {[%clk 0:02:56]}  h6 {[%clk 0:02:34]} 9. Nd2 {[%clk 0:02:53]}  Nh7 {[%clk 0:02:34]} 10. Nf1 {[%clk 0:02:52]}  f5 {[%clk 0:02:34]} 11. exf5 {[%clk 0:02:52]}  Bxf5 {[%clk 0:02:35]} 12. Ne3 {[%clk 0:02:52]}  Bg6 {[%clk 0:02:35]} 13. O-O {[%clk 0:02:50]}  e4 {[%clk 0:02:35]} 14. Nd5 {[%clk 0:02:48]}  Ne5 {[%clk 0:02:23]} 15. Nf4 {[%clk 0:02:38]}  Bf7 {[%clk 0:02:07]} 16. b3 {[%clk 0:02:38]}  g5 {[%clk 0:02:04]} 17. Nd5 {[%clk 0:02:36]}  c6 {[%clk 0:02:01]} 18. Ne3 {[%clk 0:02:33]}  Nf3+ {[%clk 0:01:57]} 19. Kh1 {[%clk 0:02:29]}  Qd7 {[%clk 0:01:54]} 20. Rd1 {[%clk 0:02:26]}  Bh5 {[%clk 0:01:50]} 21. Ba3 {[%clk 0:02:17]}  Rf6 {[%clk 0:01:26]} 22. Qc2 {[%clk 0:02:13]}  Re8 {[%clk 0:01:21]} 23. b4 {[%clk 0:02:06]}  Qf7 {[%clk 0:01:16]} 24. b5 {[%clk 0:02:04]}  Ne5 {[%clk 0:01:07]} 25. Rd2 {[%clk 0:01:42]}  Bf3 {[%clk 0:00:54]} 26. bxc6 {[%clk 0:01:40]}  Qh5 {[%clk 0:00:34]} 27. Bxd6 {[%clk 0:01:26]}  Rxd6 {[%clk 0:00:19]} 28. Rxd6 {[%clk 0:01:25]}  Qh3 {[%clk 0:00:13]} 29. Bxf3 {[%clk 0:00:57]}  exf3 {[%clk 0:00:13]} 30. Qf5 {[%clk 0:00:50]}  Qxf5 {[%clk 0:00:02]} 31. Nxf5 {[%clk 0:00:49]}  Nxc4 {[%clk 0:00:03]} 32. Rg6+ {[%clk 0:00:48]}  Kf7 {[%clk 0:00:02]} 33. Rxh6 {[%clk 0:00:46]}  Nf6 {[%clk 0:00:01]} 34. cxb7 {[%clk 0:00:37]}  Ng4 {[%clk 0:00:01]} 35. Kg1 {[%clk 0:00:32]} 1-0


[Site "https://www.chess.com"]